Cogmind - Beta 15 @@@ ROGUE MODE // 2025.07.18 @ 10:38:05 Player: beans Result: Destroyed by S-27 Virus with Autogun Performance ------------- Evolutions (4) 2000 Regions Visited (4) 800 Robots Destroyed (11) 55 Value Destroyed (310) 310 Prototype IDs (20) 400 Alien Tech Used (0) 0 Bonus (790) 790 TOTAL SCORE: 4355 Bonus ------- Registered with UFD 300 Met Optimus in HQ 500 Friendly Fire -10 Cogmind --------- Core Integrity 0/850 Matter 274/300 Energy 99/100 System Corruption 0% Temperature Cool (0) Movement Core (50) Location -6/Factory Parts ------- > --- POWER (2) -------- (None) > --- PROPULSION (4) --- (None) > --- UTILITY (6) ------ Spectral Analyzer Improved Signal Interpreter Armor Integrity Analyzer A0-MCA's Component Scanner > --- WEAPON (3) ------- (None) > --- INVENTORY (5) ---- Mapping Drone Bay (3/3) Master Drone Bay (1/1) Peak State ------------ > --- POWER ------------ Light Deuterium Engine > --- PROPULSION ------- (None) > --- UTILITY ---------- Deep Structural Scanner Spectral Analyzer Improved Signal Interpreter Armor Integrity Analyzer A0-MCA's Component Scanner Master Drone Bay > --- WEAPON ----------- (None) > --- INVENTORY -------- Mapping Drone Bay [Rating: 41] Favorites ----------- Power Ion Engine Engine Ion Engine Power Core Light Fission Core Propulsion Light Treads Treads Light Treads Flight Unit Nuclear Pulse Thruster Utility A0-MCA's Component Scanner Device Mapping Drone Bay Processor A0-MCA's Component Scanner Weapon Rocket Launcher Energy Gun Salvaging Laser Ballistic Gun Makeshift Shrapnel Gun Ballistic Cannon Heavy Flak Cannon Launcher Rocket Launcher Special Weapon CPS Tube Build | -11 -10 -10 -8 -6 ------- Run | Yrd Mat Sub Scr Fac Slots Evolved 8 | . . . . 8 Power 1 | . . . . 1 Propulsion 2 | . . . . 2 Utility 4 | . . . . 4 Weapon 1 | . . . . 1 Parts Attached 25 | 7 2 1 10 5 Power 4 | 1 . . 2 1 Engine 3 | 1 . . 2 . Core 1 | . . . . 1 Reactor . | . . . . . Propulsion 4 | 2 . . 2 . Treads 2 | 2 . . . . Leg . | . . . . . Wheel . | . . . . . Hover . | . . . . . Flight 2 | . . . 2 . Utility 9 | 1 1 . 3 4 Device 5 | 1 1 . 2 1 Storage . | . . . . . Processor 4 | . . . 1 3 Hackware . | . . . . . Protection . | . . . . . Artifact . | . . . . . Weapon 8 | 3 1 1 3 . Energy Gun 3 | 2 1 . . . Energy Cannon . | . . . . . Ballistic Gun 2 | 1 . 1 . . Ballistic Cannon 1 | . . . 1 . Launcher 1 | . . . 1 . Special Weapon 1 | . . . 1 . Impact Weapon . | . . . . . Slashing Weapon . | . . . . . Piercing Weapon . | . . . . . Special Melee Weapon . | . . . . . Unidentified Prototypes . | . . . . . Parts Lost 9 | . . . 6 3 Power 4 | . . . 2 2 Propulsion 2 | . . . 2 . Utility 1 | . . . . 1 Weapon 2 | . . . 2 . Highest Loss Streak 6 | . . . 6 2 To Critical Strikes . | . . . . . Average Backups 3 | . . . 4 1 Power . | . . . . . Propulsion . | . . . . . Utility 2 | . . . 3 1 Weapon 1 | . . . 1 . Tool/Special . | . . . . . Unused Backups . | . . . . . Power . | . . . . . Propulsion . | . . . . . Utility . | . . . . . Weapon . | . . . . . Tool/Special . | . . . . . Average Slot Usage (%) 93 | . 84 100 97 35 Engine 13 | . 14 14 13 3 Treads 19 | . 28 28 19 . Flight 6 | . . . 8 . Device 18 | . 22 28 18 6 Processor 8 | . . . 9 24 Energy Gun 3 | . 19 16 1 . Ballistic Gun 1 | . . 11 . . Ballistic Cannon 9 | . . . 11 . Launcher 10 | . . . 12 . Peak Build Rating 41 | 7 9 12 30 41 Average Rating 21 | 3 7 11 23 32 On Entrance 9 | . 7 9 12 19 Naked Turns . | . . . . . Heaviest Build 21 | 7 9 10 21 9 Greatest Support 40 | 40 40 40 40 3 Greatest Overweight (x) 3 | 2 . . 3 2 Average Overweight (x) . | . . . . . Largest Inventory Capacity 5 | 5 5 5 5 5 Average Capacity 5 | 5 5 5 5 5 Most Carried 5 | 3 1 1 5 5 Average Carried 3 | . . . 4 1 Final Capacity 5 | 5 5 5 5 5 Final Carried 5 | . . 1 5 2 Class Distribution -------------------- 100% | Mutant Dominant Class ---------------- Mutant | -10/Materials Mutant | -10/Subcaves Mutant | -8/Scraptown Mutant | -6/Factory Resources | -11 -10 -10 -8 -6 ----------- Run | Yrd Mat Sub Scr Fac Matter Collected 564 | 221 69 10 237 27 Remotely . | . . . . . Salvage Created 416 | 19 124 . 273 . Parts 24 | 4 9 . 11 . Haulers Intercepted . | . . . . . Recyclers Shooed 1 | 1 . . . . Parts Field Recycled . | . . . . . Retrieved Matter . | . . . . . Parts Self-Destructed 5 | . . 5 . . Prevented . | . . . . . Kills | -11 -10 -10 -8 -6 ------- Run | Yrd Mat Sub Scr Fac Combat Hostiles Destroyed 9 | . 4 . 5 . Guns 4 | . 4 . . . Cannons 5 | . . . 5 . Classes Destroyed 6 | 1 2 . 3 . Tunneler 2 | 1 1 . . . Swarmer 3 | . 3 . . . Grunt 1 | . 1 . . . Explorer 1 | . . . 1 . Ranger 1 | . . . 1 . Scrapper 3 | . . . 3 . Best Kill Streak 5 | 1 3 . 5 . Combat Bots Only 5 | . 3 . 5 . Max Kills in Single Turn 2 | 1 1 . 2 . Gunslinging . | . . . . . Exploded . | . . . . . Melee . | . . . . . Uniques/NPCs Destroyed . | . . . . . Combat | -11 -10 -10 -8 -6 -------- Run | Yrd Mat Sub Scr Fac Hostile Shots Fired 151 | . 9 . 42 100 Missed 53 | . 2 . 12 39 Hits 98 | . 7 . 30 61 Melee 1 | . . . 1 . Projectile 97 | . 7 . 29 61 AOE 3 | . . . . 3 Critical Strikes 2 | . . . 2 . Damage Taken 1622 | . 64 . 490 1068 Core 1050 | . 15 . 170 865 Absorbed by Shields . | . . . . . Core Remaining (%) 63 | 100 . . 26 . Volleys Fired 38 | 4 15 . 19 . Largest 2 | 1 2 . 1 . Hottest 70 | 40 70 . 44 . Shots Fired 49 | 4 26 . 19 . Gun 30 | 4 26 . . . Cannon 13 | . . . 13 . Launcher 6 | . . . 6 . Special . | . . . . . Kinetic 13 | . . . 13 . Thermal 30 | 4 26 . . . Explosive 6 | . . . 6 . Electromagnetic . | . . . . . Robot Hit Streak 12 | 2 12 . 6 . Robot Miss Streak 12 | 1 4 . 12 . Penetration Max . | . . . . . Secondary Targets . | . . . . . Shots Hit Robots 27 | 3 15 . 9 . Core Hits 23 | 2 5 . 16 . Critical Kills . | . . . . . Critical Parts Destroyed . | . . . . . Critical Strikes . | . . . . . Melee Attacks . | . . . . . Impact . | . . . . . Slashing . | . . . . . Piercing . | . . . . . Sneak Attacks . | . . . . . Combat Hostiles . | . . . . . Follow-up Attacks . | . . . . . Damage Inflicted 413 | 35 163 . 214 1 Guns 198 | 35 163 . . . Cannons 156 | . . . 156 . Explosions 58 | . . . 58 . Melee . | . . . . . Ramming 1 | . . . . 1 Kinetic 156 | . . . 156 . Thermal 198 | 35 163 . . . Explosive 58 | . . . 58 . Electromagnetic . | . . . . . Impact . | . . . . . Slashing . | . . . . . Piercing . | . . . . . Highest Corruption . | . . . . . Average Corruption . | . . . . . Corruption Purged . | . . . . . Corruption Blocked . | . . . . . Overload Shots . | . . . . . Overflow Damage . | . . . . . Projectiles . | . . . . . Explosions . | . . . . . Melee . | . . . . . Knockbacks 6 | . . . 6 . Impact . | . . . . . Kinetic 6 | . . . 6 . Secondary . | . . . . . Self-Inflicted Damage 51 | . . . 51 . Shots 2 | . . . 2 . Rammed 1 | . . . . 1 Targets Rammed 1 | . . . . 1 Kicked . | . . . . . Crushed . | . . . . . Highest Temperature 110 | 20 110 . 90 . Average Temperature 41 | 20 46 . 36 . Received Heat Transfer 248 | . 6 . 206 36 Siege Activations . | . . . . . Martial Activations . | . . . . . Shielding Activations . | . . . . . Robots Disrupted . | . . . . . Combat Hostiles . | . . . . . Robots Corrupted . | . . . . . Combat Hostiles . | . . . . . Parts Fried . | . . . . . Impact Corruptions . | . . . . . Robots Melted . | . . . . . Combat Hostiles . | . . . . . Parts Melted 2 | . 2 . . . Heat Transferred 475 | 75 400 . . . Parts Sabotaged . | . . . . . Parts Stolen . | . . . . . Parts Stripped . | . . . . . Power Chain Reactions . | . . . . . Alert | -11 -10 -10 -8 -6 ------- Run | Yrd Mat Sub Scr Fac Maximum Alert Level . | . . . . . Low Security (%) 100 | 100 100 . . 100 Level 1 . | . . . . . Level 2 . | . . . . . Level 3 . | . . . . . Level 4 . | . . . . . Level 5 . | . . . . . High Security . | . . . . . Max Security . | . . . . . Peak Influence 60 | 5 60 . . 15 Initial . | . . . . . Average 6 | . 13 . . . Influence Increases 130 | 5 95 . . 30 Destroy 0b10 Robot/C 80 | . 80 . . . Destroy 0b10 Robot/NC 10 | 5 5 . . . Destroy Leader 10 | . 10 . . . Lose Combat Pursuer 30 | . . . . 30 Influence Decreases 125 | 5 60 35 . 25 Entered New Map 18 | . . 18 . . Time Decay 102 | 5 60 17 . 20 Lost Part 5 | . . . . 5 Squads Dispatched 1 | . 1 . . . Investigation 1 | . 1 . . . Extermination . | . . . . . Reinforcement . | . . . . . Assault . | . . . . . Garrison . | . . . . . Intercept . | . . . . . Searches Triggered . | . . . . . Construction Impeded . | . . . . . Haulers Reinforced . | . . . . . Active Scanning Responses . | . . . . . Cargo Convoy Interrupts . | . . . . . Stealth | -11 -10 -10 -8 -6 --------- Run | Yrd Mat Sub Scr Fac Distress Signals . | . . . . . Communications Jammed . | . . . . . Distress Signals . | . . . . . Times Spotted 26 | . 10 . 10 6 Peak Tracking Total 4 | . 4 . 3 4 Tactical Retreats 2 | . . . . 2 Traps | -11 -10 -10 -8 -6 ------- Run | Yrd Mat Sub Scr Fac Traps Triggered . | . . . . . Indirectly . | . . . . . Trap Hack Attempts . | . . . . . Triggered . | . . . . . Disarmed . | . . . . . Reprogrammed . | . . . . . Reused . | . . . . . Traps Extracted . | . . . . . Installed . | . . . . . Triggered . | . . . . . Machines | -11 -10 -10 -8 -6 ---------- Run | Yrd Mat Sub Scr Fac Machines Disabled 4 | . . . 4 . Max in Single Turn 3 | . . . 3 . Machines Repaired . | . . . . . Machines Dismantled . | . . . . . Machines Sabotaged . | . . . . . Overloaded Fab Kills . | . . . . . Hacking | -11 -10 -10 -8 -6 --------- Run | Yrd Mat Sub Scr Fac Machines Accessed 6 | . . . 6 . Terminals . | . . . . . Fabricators . | . . . . . Repair Stations . | . . . . . Recycling Units . | . . . . . Scanalyzers . | . . . . . Garrison Access . | . . . . . Total Hacks 46 | . . . 46 . Successful 46 | . . . 46 . Failed . | . . . . . Catastrophic . | . . . . . Database Lockouts . | . . . . . Manual . | . . . . . Terminals . | . . . . . Fabricators . | . . . . . Repair Stations . | . . . . . Recycling Units . | . . . . . Scanalyzers . | . . . . . Garrison Access . | . . . . . Terminal Hacks 46 | . . . 46 . Record 45 | . . . 45 . Proto ID Catalog 1 | . . . 1 . Fabricator Hacks . | . . . . . Repair Station Hacks . | . . . . . Recycling Unit Hacks . | . . . . . Scanalyzer . | . . . . . Garrison Access Hacks . | . . . . . Unauthorized Hacks . | . . . . . Terminals . | . . . . . Fabricators . | . . . . . Repair Stations . | . . . . . Recycling Units . | . . . . . Scanalyzers . | . . . . . Garrison Access . | . . . . . Data Cores Recovered . | . . . . . Used . | . . . . . Hacking Detections . | . . . . . Full Trace Events . | . . . . . Feedback Events . | . . . . . Feedback Blocked . | . . . . . Robot Schematics Acquired . | . . . . . Robots Built . | . . . . . Authchips . | . . . . . Time . | . . . . . Total Robot Build Rating . | . . . . . Part Schematics Acquired . | . . . . . Parts Built . | . . . . . Authchips . | . . . . . Time . | . . . . . Total Part Build Rating . | . . . . . Parts Repaired . | . . . . . Time . | . . . . . Parts Recycled . | . . . . . Recycled Matter . | . . . . . Retrieved Matter . | . . . . . Retrieved Components . | . . . . . Parts Scanalyzed . | . . . . . Part Schematics Acquired . | . . . . . Parts Damaged . | . . . . . Bothacking | -11 -10 -10 -8 -6 ------------ Run | Yrd Mat Sub Scr Fac Used RIF Installer . | . . . . . Robots Hacked . | . . . . . Non-combat . | . . . . . Combat . | . . . . . Robot Hacks Applied . | . . . . . Relay Couplers Released . | . . . . . Fabnet Peak Effective % . | . . . . . Robots Rewired . | . . . . . Allies Hacked . | . . . . . Hacks Repelled . | . . . . . Allies | -11 -10 -10 -8 -6 -------- Run | Yrd Mat Sub Scr Fac Total Allies . | . . . . . Largest Group . | . . . . . Highest-Rated Group . | . . . . . Highest-Rated Ally . | . . . . . Total Orders 9 | . . . 6 3 ROAM 1 | . . . 1 . EXPLORE 2 | . . . 1 1 RETURN 6 | . . . 4 2 Ally Attacks . | . . . . . Total Damage . | . . . . . Kills . | . . . . . Allies Corrupted . | . . . . . Allies Melted . | . . . . . Intel | -11 -10 -10 -8 -6 ------- Run | Yrd Mat Sub Scr Fac Active Infowar (turns) 2960 | 12 310 283 2101 254 Optics 248 | . . . . 248 Terrain 1603 | 12 310 283 998 . Structural 2745 | . 190 283 2101 171 Robot Analysis Total . | . . . . . Derelict Logs Recovered . | . . . . . Drone Launches 16 | . . . 12 4 Drone Recoveries 16 | . . . 12 4 Exploration | -11 -10 -10 -8 -6 ------------- Run | Yrd Mat Sub Scr Fac Turns Passed 5291 | 90 310 283 4354 254 Spaces Moved 2505 | 56 160 160 1887 242 Core 285 | 29 . . 14 242 Treads 1548 | 27 160 160 1201 . Legs . | . . . . . Wheels . | . . . . . Hover . | . . . . . Flight 672 | . . . 672 . Fastest Speed 37 | 50 160 160 37 50 Average Speed 138 | 121 160 160 144 62 Slowest Speed 280 | 160 160 160 280 150 Overloaded Moves . | . . . . . Propulsion Burnouts . | . . . . . Robots Hopped . | . . . . . Potential Cave-ins . | . . . . . Cave-ins Triggered . | . . . . . Exploration Rate (%) 29 | 3 26 14 94 12 Regions Visited 4 Branch Regions 2 Pre-discovered Areas 3 | . . . 3 . Known Exits Taken . | . . . . . Unknown Exits Taken 4 | 1 1 1 1 . Scrap Searched 3 | . . . 3 . Spaces Dug . | . . . . . Terrain Destroyed 52 | . . . 52 . Melee . | . . . . . Projectile . | . . . . . AOE 52 | . . . 52 . Terrain Rammed . | . . . . . Walls Destroyed . | . . . . . Machines Disabled . | . . . . . Actions | -11 -10 -10 -8 -6 --------- Run | Yrd Mat Sub Scr Fac Total 4291 | 75 193 187 3491 345 Wait 1687 | . 15 26 1553 93 Move 2501 | 55 159 159 1886 242 Hop . | . . . . . Pick Up 20 | 7 2 1 9 1 Fast Attach 7 | . . . 7 . Attach 16 | 7 2 . 1 6 Detach 4 | . . . 2 2 Swap 5 | . . 1 4 . Drop 12 | 2 . . 10 . Fire 38 | 4 15 . 19 . Melee . | . . . . . Ram 1 | . . . . 1 Kick . | . . . . . Crush . | . . . . . Escape Stasis . | . . . . . Rewire . | . . . . . Trap . | . . . . . Miscellaneous . | . . . . . Route ------- -11/Scrapyard -10/Materials (discovered 2 exits: [*Min] / [*Sub]) -10/Subcaves -8/Scraptown (discovered 2 exits: [*Fac x2]) -6/Factory (discovered 1 exit: Fac) History --------- Turn | Location | Event 4 | -11/Scrapyard | Discovered new exit (range 16) 91 | -11/Scrapyard | Entered Materials 92 | -10/Materials | Met a group of wandering Federalists 225 | -10/Materials | Discovered new exit (range 8) 306 | -10/Materials | Build established: Mutant 353 | -10/Materials | Discovered new exit (range 9) 401 | -10/Materials | Entered Subcaves 402 | -10/Subcaves | Continued accompanying wandering Federalists (4) 427 | -10/Subcaves | Shifting Twisted Machinery released Mak. Shrapnel Gun 435 | -10/Subcaves | Shifting Twisted Machinery released Sub. Machine Gun 662 | -10/Subcaves | Wandering Federalist uncovered a shortcut to Scraptown 684 | -10/Subcaves | Entered Scraptown 1038 | -8/Scraptown | Visited CPS Storage 1078 | -8/Scraptown | Visited Science Testing Area 1103 | -8/Scraptown | Visited SPCMW 1147 | -8/Scraptown | Visited Junk Repository 1232 | -8/Scraptown | Visited UFD Registry 1232 | -8/Scraptown | Registered with UFD as "Chainthruster" 1362 | -8/Scraptown | Visited Cartography Club 2007 | -8/Scraptown | Visited LU-1G1's Boring Crew 2103 | -8/Scraptown | Visited A0-MCA Data Center 2113 | -8/Scraptown | Given a B rating by A0-MCA 2160 | -8/Scraptown | Found A0-MCA's Component Scanner 2192 | -8/Scraptown | Visited Science Guys 2243 | -8/Scraptown | Visited Observation Area 2309 | -8/Scraptown | Visited Infowarlord's Domain 2319 | -8/Scraptown | Found Spectral Analyzer 2352 | -8/Scraptown | Visited Curators Association 2411 | -8/Scraptown | Visited Scrap Suit Storage 2673 | -8/Scraptown | Discovered new exit (range 74) 2835 | -8/Scraptown | Discovered new exit (range 62) 4301 | -8/Scraptown | Learned location of Proximity Caves (-5) 4301 | -8/Scraptown | Learned location of Lower Caves (-6) 4301 | -8/Scraptown | Learned 8 Factory zone layouts 4301 | -8/Scraptown | Learned 4 Access zone layouts 4301 | -8/Scraptown | Learned 4 Storage zone layouts 4301 | -8/Scraptown | Learned 16 Upper Caves zone layouts 4301 | -8/Scraptown | Learned 24 Proximity Caves zone layouts 4301 | -8/Scraptown | Learned 4 Armory zone layouts 4301 | -8/Scraptown | Learned Materials emergency access door positions 4301 | -8/Scraptown | Learned location of 1 exit from Lower Caves 4301 | -8/Scraptown | Learned location of 3 exits from Lower Caves 4301 | -8/Scraptown | Learned location of 2 exits from Proximity Caves 4412 | -8/Scraptown | Found Deep Structural Scanner 4517 | -8/Scraptown | Met Optimus 4517 | -8/Scraptown | Accepted into 0bPrime 4917 | -8/Scraptown | Civil war broke out across Scraptown 4951 | -8/Scraptown | Found Master Drone Bay 5005 | -8/Scraptown | Lost 6 allies 5032 | -8/Scraptown | Core integrity fell below 50% 5038 | -8/Scraptown | Entered Factory 5038 | -6/Factory | Evolved 8 slots: Power x1, Propulsion x2, Utility x4, Weapon x1 5039 | -6/Factory | Identified exit to Factory 5063 | -6/Factory | Lost 6 parts (2p2n2w) 5224 | -6/Factory | Core integrity fell below 50% 5264 | -6/Factory | Core integrity fell below 20% 5292 | -6/Factory | Destroyed by S-27 Virus with Autogun Last Messages --------------- (repair cost: 2). Lgt. Deuterium Engine destroyed. Acquired Lgt. Fission Core. Slammed into S-27 Virus. Deep Structural Scanner destroyed. K-01 Serf cleans the Power Conduit. Lgt. Fission Core destroyed. K-01 Serf cleans the Power Conduit. U-05 Engineer destroyed. Terminal disabled. Power Conduit explodes. S-27 Virus destroyed. Power Conduit explodes. S-27 Virus destroyed. Power Conduit explodes. K-01 Serf collects debris. U-05 Engineer lays Concrete. K-01 Serf collects debris. Acquired 27 matter. K-01 Serf collects debris. Map ----- +----------------------------------------------------+ | ?????????????????????????????????????????????????? | | ?????????????????????????????????????????????????? | | ?????????????????????????????????????????????????? | | ?????????????????????????????????????????????????? | | ?????????????????????????????????????????????????? | | ?????????????????????????????????????????????????? | | ?????????????????????????????????????????????????? | | ?????????????????????????????????????????????????? | | ?????????????????????????????????????????????????? | | ?????????????????????????????????????????????????? | | ?????????????????????????????????????????????????? | | ?????????????????????????????????????????????????? | | ?????????????????????????????????????????????????? | | ?????????????????????????????????????????????????? | | ?????????????????????????????????????????????????? | | ?????????????????????????????????????????????????? | | ??? ?????????????????????????????????????????? | | ??? ????????????????????????????????????????? | | ??# ????????????????????????????????????????? | | ??# #?????????????????????????????????? ?????? | | ??# #??????????????????????????????? ????? | | ??# #??????????################### """??????? | | ??# #??????????# u """??????? | | ??# #??????????# """ ""???? | | ??# /??????????# ? | | ??# #??????????# @ ? | | ??# #??????????# u ? | | ??# #??????????# ###################?????? | | ??# #??????????# #???????????????????????? | | ### #??????????# #???????????????????????? | | #??????????+ #???????????????????????? | | ### #??????????# #???????????????????????? | | ### #??????????# #???????????????????????? | | # #??????????# #???????????????????????? | | # #??????????# #???????????????????????? | | # ############ #???????????????????????? | | # #???????????????????????? | | # +???????????????????????? | | # #???????????????????????? | | # #???????????????????????? | | # #???????????????????????? | | """ ############ #???????????????????????? | | ####???????# s #???????????????????????? | | ####???????# #???????????????????????? | | ####???????# #???????????????????????? | | !! ####???????# #???????????????????????? | | != ####???????# #???????????????????????? | | ! ####???????# #???????????????????????? | | ########???# #???????????????????????? | | ##### #???????????????????????? | +----------------------------------------------------+ Best States ------------- Heat Dissipation 37 Energy Generation 18 Energy Capacity 250 Matter Stores 300 Matter Capacity 300 Sight Range 24 Terrain Scan Range 16 Terrain Scan Density 10 Evasion (%) 60 Armor Integrity Analysis 30 Recoil Reduction 2 Item Schematics ----------------- None Robot Schematics ------------------ None Fabricated ------------ Nothing Repaired ---------- Nothing Alien Tech Used ----------------- None Achievements -------------- None Challenges ------------ None Game ------ Seed MiniSmartbombBasin Manual? 0 Play Time 00:33:53 Cumulative 59.0 hours Start 2025.07.18 @ 10:05:12 End 2025.07.18 @ 10:38:05 Sessions 1 Manual Loads 0 Difficulty Rogue Special Mode None Game No. 253 Rogue 253 Adventurer 0 Explorer 0 Win Type - Total 0 Types 0/0/0/0/0/0/0/0/0/0 Lore% 39 Gallery% 30 Achievement% 25 Wizard Run 0 Options --------- Layout 2 ASCII 0 Keyboard 0 Movement Mouse Keybinds 0 Fullscreen 1 Font 24/Terminus Map View 50x44 Zoom Use 0% Tactical HUD 0 Map Filters NONE Filters NONE Steam 1 RUN: 5694bad1-f975-4090-9636-61ec03e481ad